fUST/lending_fUST_20240911
["ID","MTS","AMOUNT","RATE_DAILY","PERIOD"]
[337715842,1725987051377,-500.0,0.00016987,2]
[337715843,1725987051388,-808.61,0.00016987,2]
[337715844,1725987051398,-500.0,0.00016987,2]
[337715845,1725987051407,-500.0,0.00016987,2]
[337715846,1725987051417,-500.0,0.00016987,2]
[337715847,1725987051427,-1199.35,0.00016987,2]
[337715848,1725987051436,-500.0,0.00016987,2]
[337715849,1725987051446,-500.0,0.00016987,2]
[337715850,1725987051455,-1033.55,0.00016987,2]
[337715851,1725987051465,-500.0,0.00016987,2]
[337715852,1725987051474,-1786.34,0.00016987,2]
[337715853,1725987051484,-500.0,0.00016987,2]
[337715854,1725987051494,-500.0,0.00016987,2]
[337715855,1725987051503,-500.0,0.00016987,2]
[337715856,1725987051513,-500.0,0.00016987,2]
[337715857,1725987051523,-500.0,0.00016987,2]
[337715858,1725987051532,-470.42713732,0.00016987,2]
[337715859,1725987051542,-857.51,0.00016987,2]
[337715860,1725987051552,-500.0,0.00016987,2]
[337715861,1725987051562,-500.0,0.00016987,2]
[337715862,1725987051571,-500.0,0.00016987,2]
[337715863,1725987051580,-500.0,0.00016987,2]
[337715864,1725987051590,-500.0,0.00016987,2]
[337715865,1725987051600,-742.91,0.00016987,2]
[337715866,1725987051609,-500.0,0.00016987,2]
[337715867,1725987051619,-500.0,0.00016987,2]
[337715868,1725987051629,-500.0,0.00016987,2]
[337715869,1725987051639,-606.58,0.00016987,2]
[337715870,1725987051648,-500.0,0.00016987,2]
[337715871,1725987051658,-500.0,0.00016987,2]
[337715872,1725987051667,-679.35,0.00016987,2]
[337715873,1725987051677,-500.0,0.00016987,2]
[337715874,1725987051687,-500.0,0.00016987,2]
[337715875,1725987051697,-500.0,0.00016987,2]
[337715876,1725987051706,-500.0,0.00016987,2]
[337715877,1725987051717,-500.0,0.00016987,2]
[337715878,1725987051726,-500.0,0.00016987,2]
[337715879,1725987051737,-500.0,0.00016988,2]
[337715880,1725987051746,-500.0,0.00016988,2]
[337715881,1725987051755,-500.0,0.00016988,2]
[337715882,1725987051764,-500.0,0.00016988,2]
[337715883,1725987051774,-500.0,0.00016988,2]
[337715884,1725987051783,-500.0,0.00016988,2]
[337715885,1725987051792,-358.4850641,0.00016989,2]
[337715886,1725987051802,-500.0,0.00016989,2]
[337715887,1725987051812,-500.0,0.00016989,2]
[337715888,1725987051822,-322.87561837,0.00016989,2]
[337715889,1725987051831,-500.0,0.00016989,2]
[337715890,1725987051841,-596.04645279,0.00016989,2]
[337715891,1725987051851,-500.0,0.00016989,2]
[337715892,1725987051860,-500.0,0.00016989,2]
[337715893,1725987051870,-500.0,0.00016989,2]
[337715894,1725987051882,-500.0,0.00016989,2]
[337715895,1725987051892,-500.0,0.00016989,2]
[337715896,1725987051901,-500.0,0.00016989,2]
[337715897,1725987051914,-500.0,0.00016989,2]
[337715898,1725987051925,-500.0,0.00016989,2]
[337715899,1725987051935,-500.0,0.00016989,2]
[337715900,1725987051945,-500.0,0.00016989,2]
[337715901,1725987051957,-678.54,0.0001699,2]
[337715902,1725987051967,-500.0,0.0001699,2]
[337715903,1725987051976,-500.0,0.0001699,2]
[337715904,1725987051985,-500.0,0.00016991,2]
[337715905,1725987051995,-500.0,0.00016991,2]
[337715906,1725987052005,-500.0,0.00016991,2]
[337715907,1725987052015,-500.0,0.00016991,2]
[337715908,1725987052025,-2206.43598465,0.0001716,2]
[337715909,1725987052035,-500.0,0.00017243,2]
[337715910,1725987052047,-500.0,0.00017243,2]
[337715911,1725987052057,-1047.18,0.00017258,2]
[337715912,1725987052068,-500.0,0.00017258,2]
[337715913,1725987052077,-549.37920131,0.00017259,2]
[337715914,1725987052226,-500.0,0.00017259,2]
[337715915,1725987052237,-500.0,0.00017259,2]
[337715916,1725987052247,-500.0,0.00017259,2]
[337715917,1725987052257,-500.0,0.00017259,2]
[337715918,1725987052266,-553.54,0.00017259,2]
[337715919,1725987052276,-500.0,0.00017259,2]
[337715920,1725987052286,-2363.4,0.00017259,2]
[337715921,1725987052296,-977.86,0.00017259,2]
[337715922,1725987052305,-500.0,0.00017259,2]
[337715923,1725987052318,-1813.25,0.00017259,2]
[337715924,1725987052333,-500.0,0.00017259,2]
[337715925,1725987052343,-500.0,0.00017259,2]
[337715926,1725987052352,-500.0,0.00017259,2]
[337715927,1725987052361,-500.0,0.00017259,2]
[337715928,1725987052371,-543.17264177,0.00017259,2]
[337715929,1725987052381,-1983.67,0.00017259,2]
[337715930,1725987052390,-500.0,0.00017259,2]
[337715931,1725987052399,-500.0,0.00017259,2]
[337715932,1725987052409,-585.68,0.00017259,2]
[337715933,1725987052419,-2056.03,0.00017259,2]
[337715934,1725987052428,-481.94446021,0.00017259,2]
[337715935,1725987052437,-500.0,0.00017259,2]
[337715936,1725987052447,-1041.82,0.00017259,2]
[337715937,1725987052456,-200.0,0.00017259,2]
[337715938,1725987052466,-500.0,0.00017259,2]
[337715939,1725987052476,-523.45566975,0.00017259,2]
[337715940,1725987052488,-500.0,0.00017259,2]
[337715941,1725987052499,-500.0,0.00017259,2]
[337715942,1725987052508,-890.94,0.00017259,2]
[337715943,1725987052518,-500.0,0.00017259,2]
[337715944,1725987052528,-500.0,0.00017259,2]
[337715945,1725987052537,-500.0,0.00017259,2]
[337715946,1725987052546,-500.0,0.00017259,2]
[337715947,1725987052556,-500.0,0.00017259,2]
[337715948,1725987052570,-500.0,0.00017259,2]
[337715949,1725987052579,-500.0,0.00017259,2]
[337715950,1725987052589,-500.0,0.00017259,2]
[337715951,1725987052599,-2908.31,0.00017259,2]
[337715952,1725987052608,-500.0,0.00017259,2]
[337715953,1725987052618,-570.37,0.00017259,2]
[337715954,1725987052628,-500.0,0.00017259,2]
[337715955,1725987052637,-43984.4,0.00017259,2]
[337715956,1725987052647,-500.0,0.00017259,2]
[337715957,1725987052656,-500.0,0.00017259,2]
[337715958,1725987052666,-2135.99,0.00017259,2]
[337715959,1725987052675,-450.06675238,0.00017259,2]
[337715960,1725987052684,-500.0,0.00017259,2]
[337715961,1725987052693,-3517.34,0.00017259,2]
[337715962,1725987052703,-539.11,0.00017259,2]
[337715963,1725987052712,-2575.2,0.00017259,2]
[337715964,1725987052721,-500.0,0.00017259,2]
[337715965,1725987052732,-7865.92,0.00017259,2]
[337715966,1725987052742,-500.0,0.00017259,2]
[337715967,1725987052751,-500.0,0.00017259,2]
[337715968,1725987052760,-299.99787004,0.00017259,2]
[337715969,1725987052769,-500.0,0.00017259,2]
[337715970,1725987052778,-500.0,0.00017259,2]
[337715971,1725987052788,-3508.18,0.00017259,2]
[337715972,1725987052797,-1299.19,0.00017259,2]
[337715973,1725987052807,-1213.25,0.00017259,2]
[337715974,1725987052817,-500.0,0.00017259,2]
[337715975,1725987052826,-500.0,0.00017259,2]
[337715976,1725987052835,-500.0,0.00017259,2]
[337715977,1725987052844,-500.0,0.00017259,2]
[337715978,1725987052853,-897.95,0.00017259,2]
[337715979,1725987052862,-500.0,0.00017259,2]
[337715980,1725987052873,-500.0,0.00017259,2]
[337715981,1725987052883,-2680.58,0.00017259,2]
[337715982,1725987052894,-867.86,0.00017259,2]
[337715983,1725987052903,-500.0,0.00017259,2]
[337715984,1725987052913,-500.0,0.00017259,2]
[337715985,1725987052922,-500.0,0.00017259,2]
[337715986,1725987052932,-539.4,0.00017259,2]
[337715987,1725987052941,-3969.43,0.00017259,2]
[337715988,1725987052952,-1187.95,0.00017259,2]
[337715989,1725987052962,-411.82010407,0.00017259,2]
[337715990,1725987052971,-500.0,0.00017259,2]
[337715991,1725987052981,-500.0,0.00017259,2]
[337715992,1725987052991,-500.0,0.00017259,2]
[337715993,1725987053002,-500.0,0.00017259,2]
[337715994,1725987053012,-500.0,0.00017259,2]
[337715995,1725987053022,-500.0,0.00017259,2]
[337715996,1725987053031,-500.0,0.00017259,2]
[337715997,1725987053042,-500.0,0.00017259,2]
[337715998,1725987053052,-500.0,0.00017259,2]
[337715999,1725987053061,-500.0,0.00017259,2]
[337716000,1725987053071,-8904.62,0.00017259,2]
[337716001,1725987053081,-500.0,0.00017259,2]
[337716002,1725987053090,-1301.09,0.00017259,2]
[337716003,1725987053100,-500.0,0.00017259,2]
[337716004,1725987053109,-500.0,0.00017259,2]
[337716005,1725987053121,-500.0,0.00017259,2]
[337716006,1725987053130,-1116.76,0.00017259,2]
[337716007,1725987053140,-500.0,0.00017259,2]
[337716008,1725987053152,-2535.01,0.00017259,2]
[337716009,1725987053164,-500.0,0.00017259,2]
[337716010,1725987053174,-1737.23,0.00017259,2]
[337716011,1725987053183,-500.0,0.00017259,2]
[337716012,1725987053192,-1452.81,0.00017259,2]
[337716013,1725987053202,-500.0,0.00017259,2]
[337716014,1725987053212,-500.0,0.00017259,2]
[337716015,1725987053221,-500.0,0.00017259,2]
[337716016,1725987053231,-500.0,0.00017259,2]
[337716017,1725987053240,-3779.0,0.00017259,2]
[337716018,1725987053250,-500.0,0.00017259,2]
[337716019,1725987053259,-432.27161467,0.00017259,2]
[337716020,1725987053269,-500.0,0.00017259,2]
[337716021,1725987053279,-500.0,0.00017259,2]
[337716022,1725987053289,-500.0,0.00017259,2]
[337716023,1725987053300,-212.96073866,0.00017259,2]
[337716024,1725987053310,-500.0,0.00017259,2]
[337716025,1725987053321,-500.0,0.0001726,2]
[337716026,1725987053331,-500.0,0.0001726,2]
[337716027,1725987053341,-565.66,0.0001726,2]
[337716028,1725987053351,-920.25,0.0001726,2]
[337716029,1725987053360,-500.0,0.0001726,2]
[337716030,1725987053370,-532.37421499,0.0001726,2]
[337716031,1725987053379,-500.0,0.0001726,2]
[337716032,1725987053389,-500.0,0.0001726,2]
[337716033,1725987053398,-500.0,0.0001726,2]
[337716034,1725987053408,-1099.81,0.0001726,2]
[337716035,1725987053418,-500.0,0.0001726,2]
[337716036,1725987053428,-500.0,0.0001726,2]
[337716037,1725987053439,-500.0,0.0001726,2]
[337716038,1725987053449,-1604.71,0.0001726,2]
[337716039,1725987053458,-2210.6,0.0001726,2]
[337716040,1725987053469,-500.0,0.0001726,2]
[337716041,1725987053479,-500.0,0.0001726,2]
[337716042,1725987053488,-1189.48,0.0001726,2]
[337716043,1725987053498,-500.0,0.0001726,2]
[337716044,1725987053508,-500.0,0.0001726,2]
[337716045,1725987053517,-663.24,0.0001726,2]
[337716046,1725987053527,-1038.53,0.0001726,2]
[337716047,1725987053536,-1169.08,0.0001726,2]
[337716048,1725987053545,-505.5,0.0001726,2]
[337716049,1725987053555,-1822.14,0.0001726,2]
[337716050,1725987053566,-720.07,0.0001726,2]
[337716051,1725987053575,-500.0,0.0001726,2]
[337716052,1725987053584,-2913.8,0.0001726,2]
[337716053,1725987053594,-500.0,0.0001726,2]
[337716054,1725987053602,-1955.94,0.0001726,2]
[337716055,1725987053611,-500.0,0.0001726,2]
[337716056,1725987053621,-742.92,0.0001726,2]
[337716057,1725987053630,-500.0,0.0001726,2]
[337716058,1725987053640,-609.62,0.0001726,2]
[337716059,1725987053650,-1713.89,0.0001726,2]
[337716060,1725987053660,-500.0,0.0001726,2]
[337716061,1725987053671,-500.0,0.0001726,2]
[337716062,1725987053680,-971.86,0.0001726,2]
[337716063,1725987053690,-500.0,0.0001726,2]
[337716064,1725987053700,-2284.58,0.0001726,2]
[337716065,1725987053710,-500.0,0.0001726,2]
[337716066,1725987053720,-1021.87,0.0001726,2]
[337716067,1725987053729,-500.0,0.0001726,2]
[337716068,1725987053739,-792.09,0.0001726,2]
[337716069,1725987053748,-1816.79,0.0001726,2]
[337716070,1725987053759,-500.0,0.0001726,2]
[337716071,1725987053768,-720.94,0.0001726,2]
[337716072,1725987053778,-500.0,0.0001726,2]
[337716073,1725987053788,-753.23,0.0001726,2]
[337716074,1725987053798,-1933.6,0.0001726,2]
[337716075,1725987053807,-1008.22,0.0001726,2]
[337716076,1725987053820,-1583.17,0.0001726,2]
[337716077,1725987053830,-500.0,0.0001726,2]
[337716078,1725987053839,-500.0,0.0001726,2]
[337716079,1725987053848,-500.0,0.0001726,2]
[337716080,1725987053858,-500.0,0.0001726,2]
[337716081,1725987053867,-9481.22,0.0001726,2]
[337716082,1725987053879,-1938.09,0.0001726,2]
[337716083,1725987053888,-1806.64,0.0001726,2]
[337716084,1725987053898,-589.44,0.0001726,2]
[337716085,1725987053908,-500.0,0.0001726,2]
[337716086,1725987053919,-500.0,0.0001726,2]
[337716087,1725987053931,-1240.8,0.0001726,2]
[337716088,1725987053941,-946.63,0.0001726,2]
[337716089,1725987053952,-38864.62,0.0001726,2]
[337716090,1725987053963,-500.0,0.0001726,2]
[337716091,1725987053972,-500.0,0.0001726,2]
[337716092,1725987053981,-2013.95,0.0001726,2]
[337716093,1725987053991,-2044.37,0.0001726,2]
[337716094,1725987054001,-500.0,0.0001726,2]
[337716095,1725987054011,-53987.64,0.0001726,2]
[337716096,1725987054020,-500.0,0.0001726,2]
[337716097,1725987054029,-500.0,0.0001726,2]
[337716098,1725987054039,-544.81717413,0.0001726,2]
[337716099,1725987054049,-500.0,0.0001726,2]
[337716100,1725987054059,-500.0,0.0001726,2]
[337716101,1725987054071,-4713.36,0.0001726,2]
[337716102,1725987054081,-535.49,0.0001726,2]
[337716103,1725987054090,-500.0,0.0001726,2]
[337716104,1725987054099,-965.38,0.0001726,2]
[337716105,1725987054110,-500.0,0.0001726,2]
[337716106,1725987054119,-500.0,0.0001726,2]
[337716107,1725987054129,-806.04,0.0001726,2]
[337716108,1725987054139,-500.0,0.0001726,2]
[337716109,1725987054148,-500.0,0.0001726,2]
[337716110,1725987054158,-500.0,0.0001726,2]
[337716111,1725987054167,-228.26382656,0.0001726,2]
[337716112,1725987054176,-500.0,0.0001726,2]
[337716113,1725987054186,-2582.53,0.0001726,2]
[337716114,1725987054195,-677.86,0.0001726,2]
[337716115,1725987054205,-500.0,0.0001726,2]
[337716116,1725987054214,-500.0,0.0001726,2]
[337716117,1725987054224,-771.86,0.0001726,2]
[337716118,1725987054233,-500.0,0.0001726,2]
[337716119,1725987054243,-500.0,0.0001726,2]
[337716120,1725987054252,-1718.58,0.0001726,2]
[337716121,1725987054261,-1132.77,0.0001726,2]
[337716122,1725987054270,-500.0,0.0001726,2]
[337716123,1725987054279,-2709.96,0.0001726,2]
[337716124,1725987054290,-652.93,0.0001726,2]
[337716125,1725987054299,-500.0,0.0001726,2]
[337716126,1725987054309,-5158.88,0.0001726,2]
[337716127,1725987054320,-500.0,0.0001726,2]
[337716128,1725987054329,-512.33086063,0.0001726,2]
[337716129,1725987054339,-500.0,0.0001726,2]
[337716130,1725987054348,-500.0,0.0001726,2]
[337716131,1725987054357,-285.79,0.0001726,2]
[337716132,1725987054366,-500.0,0.0001726,2]
[337716133,1725987054375,-972.48,0.0001726,2]
[337716134,1725987054385,-500.0,0.0001726,2]
[337716135,1725987054394,-1065.08,0.00017261,2]
[337716136,1725987054403,-500.0,0.00017261,2]
[337716137,1725987054413,-218.43964335,0.00017261,2]
[337716138,1725987054422,-660.04,0.00017261,2]
[337716139,1725987054432,-500.0,0.00017261,2]
[337716140,1725987054444,-500.0,0.00017261,2]
[337716141,1725987054454,-500.0,0.00017261,2]
[337716142,1725987054463,-500.0,0.00017261,2]
[337716143,1725987054472,-1568.6,0.00017261,2]
[337716144,1725987054482,-792.17,0.00017261,2]
[337716145,1725987054491,-500.0,0.00017261,2]
[337716146,1725987054500,-500.0,0.00017261,2]
[337716147,1725987054510,-904.46,0.00017261,2]
[337716148,1725987054520,-500.0,0.00017261,2]
[337716149,1725987054530,-625.22,0.00017261,2]
[337716150,1725987054540,-166.12105748,0.00017261,2]
[337716151,1725987054551,-536.45,0.00017261,2]
[337716152,1725987054561,-500.0,0.00017261,2]
[337716153,1725987054572,-500.0,0.00017261,2]
[337716154,1725987054581,-500.0,0.00017261,2]
[337716155,1725987054591,-502.6,0.00017261,2]
[337716156,1725987054600,-500.0,0.00017261,2]
[337716157,1725987054609,-1049.86,0.00017261,2]
[337716158,1725987054620,-1076.1,0.00017261,2]
[337716159,1725987054629,-500.0,0.00017261,2]
[337716160,1725987054638,-500.0,0.00017261,2]
[337716161,1725987054647,-500.0,0.00017261,2]
[337716162,1725987054656,-500.0,0.00017261,2]
[337716163,1725987054666,-500.0,0.00017261,2]
[337716164,1725987054675,-500.0,0.00017261,2]
[337716165,1725987054684,-500.0,0.00017261,2]
[337716166,1725987054693,-500.0,0.00017261,2]
[337716167,1725987054703,-500.0,0.00017261,2]
[337716168,1725987054713,-500.0,0.00017261,2]
[337716169,1725987054843,-500.0,0.00017261,2]
[337716170,1725987054853,-629.08,0.00017261,2]
[337716171,1725987054863,-500.0,0.00017261,2]
[337716172,1725987054872,-712.42,0.00017261,2]
[337716173,1725987054884,-500.0,0.00017261,2]
[337716174,1725987054893,-500.0,0.00017261,2]
[337716175,1725987054903,-500.0,0.00017261,2]
[337716176,1725987054912,-500.0,0.00017261,2]
[337716177,1725987054923,-500.0,0.00017261,2]
[337716178,1725987054933,-500.0,0.00017261,2]
[337716179,1725987054942,-500.0,0.00017261,2]
[337716180,1725987054952,-500.0,0.00017261,2]
[337716181,1725987054961,-500.0,0.00017261,2]
[337716182,1725987054971,-500.0,0.00017261,2]
[337716183,1725987054980,-500.0,0.00017261,2]
[337716184,1725987054989,-500.0,0.00017261,2]
[337716185,1725987054998,-500.0,0.00017261,2]
[337716186,1725987055007,-852.74,0.00017261,2]
[337716187,1725987055017,-500.0,0.00017261,2]
[337716188,1725987055026,-500.0,0.00017261,2]
[337716189,1725987055035,-500.0,0.00017261,2]
[337716190,1725987055044,-500.0,0.00017261,2]
[337716191,1725987055053,-500.0,0.00017261,2]
[337716192,1725987055062,-427.8455193,0.00017261,2]
[337716193,1725987055074,-800.96,0.00017261,2]
[337716194,1725987055082,-649.67,0.00017261,2]
[337716195,1725987055092,-500.0,0.00017261,2]
[337716196,1725987055101,-500.0,0.00017261,2]
[337716197,1725987055110,-588.79,0.00017261,2]
[337716198,1725987055119,-500.0,0.00017261,2]
[337716199,1725987055129,-1531.75,0.00017261,2]
[337716200,1725987055144,-500.0,0.00017261,2]
[337716201,1725987055154,-677.0,0.00017261,2]
[337716202,1725987055163,-500.0,0.00017261,2]
[337716203,1725987055173,-582.35,0.00017261,2]
[337716204,1725987055182,-1661.25,0.00017261,2]
[337716205,1725987055191,-500.0,0.00017261,2]
[337716206,1725987055201,-500.0,0.00017261,2]
[337716207,1725987055210,-500.0,0.00017261,2]
[337716208,1725987055220,-902.12,0.00017261,2]
[337716209,1725987055230,-500.0,0.00017261,2]
[337716210,1725987055240,-500.0,0.00017261,2]
[337716211,1725987055249,-500.0,0.00017261,2]
[337716212,1725987055259,-1161.67,0.00017261,2]
[337716213,1725987055268,-1545.8,0.00017261,2]
[337716214,1725987055277,-500.0,0.00017261,2]
[337716215,1725987055286,-500.0,0.00017261,2]
[337716216,1725987055296,-1031.96,0.00017261,2]
[337716217,1725987055305,-500.0,0.00017261,2]
[337716218,1725987055317,-1005.54,0.00017261,2]
[337716219,1725987055326,-801.25,0.00017261,2]
[337716220,1725987055336,-682.45,0.00017261,2]
[337716221,1725987055346,-1528.95,0.00017261,2]
[337716222,1725987055355,-686.42,0.00017261,2]
[337716223,1725987055364,-500.0,0.00017261,2]
[337716224,1725987055374,-500.0,0.00017261,2]
[337716225,1725987055383,-3196.6,0.00017261,2]
[337716226,1725987055394,-1720.38,0.00017261,2]
[337716227,1725987055404,-580.2,0.00017261,2]
[337716228,1725987055415,-500.0,0.00017261,2]
[337716229,1725987055425,-2053.93,0.00017261,2]
[337716230,1725987055440,-500.0,0.00017261,2]
[337716231,1725987055452,-500.0,0.00017261,2]
[337716232,1725987055462,-1653.22,0.00017261,2]
[337716233,1725987055471,-2581.4,0.00017261,2]
[337716234,1725987055481,-500.0,0.00017261,2]
[337716235,1725987055491,-500.0,0.00017261,2]
[337716236,1725987055500,-500.0,0.00017261,2]
[337716237,1725987055510,-500.0,0.00017261,2]
[337716238,1725987055521,-582.87,0.00017261,2]
[337716239,1725987055532,-500.0,0.00017261,2]
[337716240,1725987055543,-665.52,0.00017261,2]
[337716241,1725987055553,-500.0,0.00017261,2]
[337716242,1725987055564,-624.21,0.00017261,2]
[337716243,1725987055578,-796.18,0.00017261,2]
[337716244,1725987055588,-500.0,0.00017261,2]
[337716245,1725987055598,-500.0,0.00017261,2]
[337716246,1725987055607,-1602.56,0.00017261,2]
[337716247,1725987055617,-1153.39,0.00017261,2]
[337716248,1725987055627,-979.44,0.00017261,2]
[337716249,1725987055637,-629.96,0.00017261,2]
[337716250,1725987055647,-931.29,0.00017261,2]
[337716251,1725987055656,-500.0,0.00017261,2]
[337716252,1725987055666,-500.0,0.00017261,2]
[337716253,1725987055675,-516.8,0.00017261,2]
[337716254,1725987055685,-1387.23,0.00017261,2]
[337716255,1725987055695,-1249.15,0.00017261,2]
[337716256,1725987055704,-500.0,0.00017261,2]
[337716257,1725987055713,-500.0,0.00017261,2]
[337716258,1725987055723,-507.63,0.00017261,2]
[337716259,1725987055733,-3108.36,0.00017261,2]
[337716260,1725987055742,-1950.86,0.00017261,2]
[337716261,1725987055751,-500.0,0.00017261,2]
[337716262,1725987055761,-513.58,0.00017261,2]
[337716263,1725987055775,-500.0,0.00017261,2]
[337716264,1725987055785,-500.0,0.00017261,2]
[337716265,1725987055794,-1468.78,0.00017261,2]
[337716266,1725987055804,-4251.41,0.00017261,2]
[337716267,1725987055813,-500.0,0.00017261,2]
[337716268,1725987055824,-500.0,0.00017261,2]
[337716269,1725987055834,-500.0,0.00017261,2]
[337716270,1725987055843,-500.0,0.00017261,2]
[337716271,1725987055853,-500.0,0.00017261,2]
[337716272,1725987055862,-500.0,0.00017261,2]
[337716273,1725987055872,-500.0,0.00017261,2]
[337716274,1725987055886,-500.0,0.00017261,2]
[337716275,1725987055895,-500.0,0.00017261,2]
[337716276,1725987055904,-500.0,0.00017261,2]
[337716277,1725987055915,-818.77,0.00017261,2]
[337716278,1725987055925,-500.0,0.00017261,2]
[337716279,1725987055935,-500.0,0.00017261,2]
[337716280,1725987055945,-500.0,0.00017261,2]
[337716281,1725987055955,-500.0,0.00017261,2]
[337716282,1725987055966,-547.21,0.00017261,2]
[337716283,1725987055976,-889.36,0.00017261,2]
[337716284,1725987055985,-500.0,0.00017261,2]
[337716285,1725987055994,-500.0,0.00017261,2]
[337716286,1725987056004,-500.0,0.00017261,2]
[337716287,1725987056013,-948.67,0.00017261,2]
[337716288,1725987056023,-653.85,0.00017261,2]
[337716289,1725987056032,-500.0,0.00017261,2]
[337716290,1725987056041,-500.0,0.00017261,2]
[337716291,1725987056051,-527.0,0.00017261,2]
[337716292,1725987056061,-500.0,0.00017261,2]
[337716293,1725987056073,-1596.56,0.00017261,2]
[337716294,1725987056082,-626.02,0.00017261,2]
[337716295,1725987056091,-500.0,0.00017261,2]
[337716296,1725987056101,-500.0,0.00017261,2]
[337716297,1725987056110,-500.0,0.00017261,2]
[337716298,1725987056119,-500.0,0.00017261,2]
[337716299,1725987056128,-553.2,0.00017261,2]
[337716300,1725987056138,-500.0,0.00017261,2]
[337716301,1725987056147,-848.19,0.00017261,2]
[337716302,1725987056157,-500.0,0.00017261,2]
[337716303,1725987056167,-500.0,0.00017261,2]
[337716304,1725987056176,-882.16,0.00017261,2]
[337716305,1725987056186,-500.0,0.00017261,2]
[337716306,1725987056196,-578.17,0.00017261,2]
[337716307,1725987056206,-500.0,0.00017261,2]
[337716308,1725987056215,-500.0,0.00017261,2]
[337716309,1725987056224,-500.0,0.00017261,2]
[337716310,1725987056233,-500.0,0.00017261,2]
[337716311,1725987056244,-841.44,0.00017261,2]
[337716312,1725987056253,-500.0,0.00017261,2]
[337716313,1725987056262,-642.34,0.00017261,2]
[337716314,1725987056272,-791.11,0.00017261,2]
[337716315,1725987056282,-500.0,0.00017261,2]
[337716316,1725987056291,-500.0,0.00017261,2]
[337716317,1725987056301,-500.0,0.00017261,2]
[337716318,1725987056310,-1895.41,0.00017261,2]
[337716319,1725987056320,-318.95280524,0.00017261,2]
[337716320,1725987056329,-500.0,0.00017261,2]
[337716321,1725987056339,-980.57,0.00017261,2]
[337716322,1725987056348,-500.0,0.00017261,2]
[337716323,1725987056358,-2400.44,0.00017261,2]
[337716324,1725987056367,-500.0,0.00017261,2]
[337716325,1725987056377,-500.0,0.00017261,2]
[337716326,1725987056386,-376.78,0.00017261,2]
[337716327,1725987056396,-500.0,0.00017261,2]
[337716328,1725987056405,-500.0,0.00017261,2]
[337716329,1725987056415,-1124.28,0.00017261,2]
[337716330,1725987056424,-500.0,0.00017261,2]
[337716331,1725987056434,-216.15756411,0.00017261,2]
[337716332,1725987056443,-672.56,0.00017261,2]
[337716333,1725987056452,-571.17,0.00017261,2]
[337716334,1725987056462,-500.0,0.00017261,2]
[337716335,1725987056471,-500.0,0.00017261,2]
[337716336,1725987056481,-500.0,0.00017261,2]
[337716337,1725987056490,-503.67506644,0.00017261,2]
[337716338,1725987056499,-808.61,0.00017261,2]
[337716339,1725987056509,-500.0,0.00017261,2]
[337716340,1725987056519,-500.0,0.00017261,2]
[337716341,1725987056528,-500.0,0.00017261,2]